fUST/lending_fUST_20251117
["ID","MTS","AMOUNT","RATE_DAILY","PERIOD"]
[394201495,1763374245735,-903.38957099,0.00027397,7]
[394201496,1763374245949,-8350.26809807,0.00027397,7]
[394201497,1763374245958,-154.98233,0.00027397,7]
[394201498,1763374245968,-10000.0,0.00027397,7]
[394201499,1763374245977,-2377.20933915,0.00027397,7]
[394201532,1763374352005,817.96559921,0.000165,3]
[394201533,1763374402396,1146.74,0.00016427,3]
[394201534,1763374412985,573.37,0.00016427,3]
[394201535,1763374416337,-501.98604669,0.00014873,2]
[394201536,1763374416358,-508.13254612,0.00014873,2]
[394201537,1763374416379,-500.0,0.00014873,2]
[394201538,1763374416398,-54.19499643,0.00014873,2]
[394201539,1763374420369,-116.70403615,0.00014873,2]
[394201540,1763374420390,-401.87967306,0.00014895,2]
[394201541,1763374422852,-356.68555753,0.00014895,2]
[394201542,1763374423604,286.68,0.00016427,3]
[394201543,1763374434196,860.08,0.00016427,3]
[394201544,1763374437195,874.0,0.00015575,30]
[394201545,1763374437220,126.0,0.00015575,30]
[394201546,1763374438940,1000.0,0.00015575,30]
[394201547,1763374440659,1000.0,0.00015575,30]
[394201548,1763374442410,1000.0,0.00015575,30]
[394201549,1763374444143,1000.0,0.00015575,30]
[394201550,1763374445866,1000.0,0.00015575,30]
[394201551,1763374522078,557.91,0.00015311,30]
[394201552,1763374659416,1010.22775088,0.00032876,120]
[394201555,1763374716525,8822.621758,0.00013849,2]
[394201556,1763374789937,-356.68555753,0.000145,2]
[394201557,1763374789962,-356.68555753,0.00014646,2]
[394201558,1763374789986,-150.0,0.0001477,2]
[394201559,1763374790010,-4890.52170425,0.00014793,2]
[394201560,1763374790033,-178.1124712,0.00014795,2]
[394201561,1763374790057,-500.0,0.00014873,2]
[394201562,1763374790082,-501.81896579,0.00014873,2]
[394201563,1763374790104,-500.0,0.00014873,2]
[394201564,1763374790128,-161.01806223,0.00014873,2]
[394201565,1763374790152,-500.0,0.00014873,2]
[394201566,1763374790174,-500.0,0.00014873,2]
[394201567,1763374790197,-16405.15768147,0.00014873,2]
[394201568,1763374791825,-25000.0,0.00014873,2]
[394201569,1763375007428,390.93,0.00012329,2]
[394201570,1763375017840,325.77,0.00012329,2]
[394201571,1763375028271,271.48,0.00012329,2]
[394201572,1763375038672,226.23,0.00012329,2]
[394201573,1763375049086,188.53,0.00012329,2]
[394201574,1763375059686,157.1,0.00012329,2]
[394201575,1763375070098,785.55,0.00012329,2]
[394201576,1763375079336,16301.17093644,0.00032,120]
[394201577,1763375114881,150.0,0.00032877,120]
[394201656,1763375211133,-150.0,0.00014683,2]
[394201657,1763375211153,-66.68123857,0.00014789,2]
[394201659,1763375240120,-157.30364035,0.00014871,2]
[394201674,1763375353117,-4270.87133645,0.00014788,2]
[394201675,1763375353234,-142.69635965,0.00014871,2]
[394201676,1763375353253,-300.0,0.00014871,2]
[394201677,1763375353273,-1200.0,0.00014871,2]
[394201678,1763375353295,-1200.0,0.00014872,2]
[394201679,1763375353314,-500.0,0.00014873,2]
[394201680,1763375353333,-511.09051941,0.00014873,2]
[394201681,1763375353352,-500.0,0.00014873,2]
[394201682,1763375353372,-495.28841905,0.00014873,2]
[394201683,1763375353391,-502.92139257,0.00014873,2]
[394201684,1763375353418,-500.0,0.00014873,2]
[394201685,1763375353437,-593.21413216,0.00014873,2]
[394201686,1763375353460,-561.6496881,0.00014887,2]
[394201687,1763375353482,-500.0,0.00014887,2]
[394201688,1763375353502,-325.84627641,0.00014887,2]
[394201689,1763375353527,-500.0,0.00014887,2]
[394201690,1763375353548,-500.0,0.00014887,2]
[394201691,1763375353568,-500.0,0.00014887,2]
[394201692,1763375353589,-500.0,0.00014887,2]
[394201693,1763375353609,-410.76495386,0.00014887,2]
[394201694,1763375353629,-500.0,0.00014887,2]
[394201695,1763375353650,-500.0,0.00014887,2]
[394201696,1763375353670,-500.0,0.00014887,2]
[394201697,1763375353690,-500.0,0.00014887,2]
[394201698,1763375353710,-500.0,0.00014887,2]
[394201699,1763375353732,-500.0,0.00014887,2]
[394201700,1763375353753,-500.0,0.00014887,2]
[394201701,1763375353776,-500.0,0.00014887,2]
[394201702,1763375353803,-500.0,0.00014887,2]
[394201703,1763375353825,-399.99999999,0.00014887,2]
[394201704,1763375353845,-500.0,0.00014887,2]
[394201705,1763375353867,-500.0,0.00014887,2]
[394201706,1763375353886,-500.0,0.00014887,2]
[394201707,1763375353907,-500.0,0.00014887,2]
[394201708,1763375353928,-500.0,0.00014887,2]
[394201709,1763375353949,-500.0,0.00014887,2]
[394201710,1763375353968,-500.0,0.00014887,2]
[394201711,1763375353988,-500.0,0.00014887,2]
[394201712,1763375354009,-500.0,0.00014887,2]
[394201713,1763375354030,-500.0,0.00014887,2]
[394201714,1763375354051,-500.0,0.00014887,2]
[394201715,1763375354072,-500.0,0.00014887,2]
[394201716,1763375354093,-500.0,0.00014887,2]
[394201717,1763375354113,-500.0,0.00014887,2]
[394201718,1763375354132,-500.0,0.00014887,2]
[394201719,1763375354152,-500.0,0.00014887,2]
[394201720,1763375354172,-500.0,0.00014887,2]
[394201721,1763375354192,-500.0,0.00014887,2]
[394201722,1763375354214,-500.0,0.00014887,2]
[394201723,1763375354234,-500.0,0.00014887,2]
[394201724,1763375354255,-500.0,0.00014887,2]
[394201725,1763375354275,-500.0,0.00014887,2]
[394201726,1763375354295,-500.0,0.00014887,2]
[394201727,1763375354316,-500.0,0.00014887,2]
[394201728,1763375354337,-500.0,0.00014887,2]
[394201729,1763375354358,-500.0,0.00014887,2]
[394201730,1763375354380,-500.0,0.00014887,2]
[394201731,1763375354401,-550.0,0.00014887,2]
[394201732,1763375354421,-500.0,0.00014887,2]
[394201733,1763375354442,-500.0,0.00014887,2]
[394201734,1763375354462,-396.1623029,0.00014887,2]
[394201735,1763375356984,833.99,0.00012329,2]
[394201736,1763375367605,694.99,0.00012329,2]
[394201737,1763375378122,579.16,0.00012329,2]
[394201738,1763375388433,482.63,0.00012329,2]
[394201739,1763375398843,402.19,0.00012329,2]
[394201742,1763375409263,335.16,0.00012329,2]
[394201743,1763375419666,279.3,0.00012329,2]
[394201744,1763375430256,232.75,0.00012329,2]
[394201763,1763375431816,-1069.30147886,0.00014738,2]
[394201780,1763375437720,-59.28158221,0.00014738,2]
[394201781,1763375437730,-393.15478167,0.00014886,2]
[394201782,1763375437739,-500.0,0.00014886,2]
[394201783,1763375437749,-546.87591302,0.00014886,2]
[394201784,1763375437762,-500.0,0.00014886,2]
[394201785,1763375437772,-546.87591302,0.00014886,2]
[394201786,1763375437782,-500.0,0.00014886,2]
[394201787,1763375437791,-546.87591302,0.00014886,2]
[394201788,1763375437800,-500.0,0.00014886,2]
[394201789,1763375437810,-546.87591302,0.00014886,2]
[394201790,1763375437819,-500.0,0.00014886,2]
[394201791,1763375437829,-546.87591302,0.00014886,2]
[394201792,1763375437838,-500.0,0.00014886,2]
[394201793,1763375437848,-546.87591302,0.00014886,2]
[394201794,1763375437858,-500.0,0.00014886,2]
[394201795,1763375437867,-546.87591302,0.00014886,2]
[394201796,1763375437876,-500.0,0.00014886,2]
[394201797,1763375437886,-500.0,0.00014886,2]
[394201798,1763375437895,-546.87591302,0.00014886,2]
[394201799,1763375437904,-546.87591302,0.00014886,2]
[394201800,1763375437914,-500.0,0.00014886,2]
[394201801,1763375437924,-546.87591302,0.00014886,2]
[394201802,1763375437934,-500.0,0.00014886,2]
[394201803,1763375437943,-546.87591302,0.00014886,2]
[394201804,1763375437952,-500.0,0.00014886,2]
[394201805,1763375437961,-546.87591302,0.00014886,2]
[394201806,1763375437973,-546.87591302,0.00014886,2]
[394201807,1763375437984,-199.88335624,0.00014886,2]
[394201808,1763375437993,-546.87591302,0.00014886,2]
[394201809,1763375438004,-500.0,0.00014886,2]
[394201810,1763375438014,-546.87591302,0.00014886,2]
[394201811,1763375438024,-500.0,0.00014886,2]
[394201812,1763375438034,-546.87591302,0.00014886,2]
[394201813,1763375438044,-500.0,0.00014886,2]
[394201814,1763375438054,-546.87591302,0.00014886,2]
[394201815,1763375438064,-500.0,0.00014886,2]
[394201816,1763375438073,-546.87591302,0.00014886,2]
[394201817,1763375438082,-500.0,0.00014886,2]
[394201818,1763375438091,-546.87591302,0.00014886,2]
[394201819,1763375438101,-546.87591302,0.00014886,2]
[394201820,1763375438110,-500.0,0.00014886,2]
[394201821,1763375438119,-546.87591302,0.00014886,2]
[394201822,1763375438129,-500.0,0.00014886,2]
[394201823,1763375438139,-546.87591302,0.00014886,2]
[394201824,1763375438149,-546.87591302,0.00014886,2]
[394201825,1763375438158,-500.0,0.00014886,2]
[394201826,1763375438167,-546.87591302,0.00014886,2]
[394201827,1763375438178,-546.87591302,0.00014886,2]
[394201828,1763375438187,-500.0,0.00014886,2]
[394201829,1763375438196,-546.87591302,0.00014886,2]
[394201830,1763375438206,-546.87591302,0.00014886,2]
[394201831,1763375438215,-500.0,0.00014886,2]
[394201832,1763375438225,-546.87591302,0.00014886,2]
[394201833,1763375438234,-500.0,0.00014886,2]
[394201834,1763375438244,-546.87591302,0.00014886,2]
[394201835,1763375438253,-546.87591302,0.00014886,2]
[394201836,1763375438262,-500.0,0.00014886,2]
[394201837,1763375438272,-546.87591302,0.00014886,2]
[394201838,1763375438281,-546.87591302,0.00014886,2]
[394201839,1763375438292,-500.0,0.00014886,2]
[394201840,1763375438301,-546.87591302,0.00014886,2]
[394201841,1763375438310,-546.87591302,0.00014886,2]
[394201842,1763375438319,-546.87591302,0.00014886,2]
[394201843,1763375438329,-546.87591302,0.00014886,2]
[394201844,1763375438338,-546.87591302,0.00014886,2]
[394201845,1763375438348,-546.87591302,0.00014886,2]
[394201846,1763375438357,-546.87591302,0.00014886,2]
[394201847,1763375438366,-546.87591302,0.00014886,2]
[394201848,1763375438376,-546.87591302,0.00014886,2]
[394201849,1763375438386,-546.87591302,0.00014886,2]
[394201850,1763375438395,-500.0,0.00014886,2]
[394201851,1763375438404,-546.87591302,0.00014886,2]
[394201852,1763375438414,-546.87591302,0.00014886,2]
[394201853,1763375438424,-546.87591302,0.00014886,2]
[394201854,1763375438434,-546.87591302,0.00014886,2]
[394201855,1763375438444,-546.87591302,0.00014886,2]
[394201856,1763375438454,-546.87591302,0.00014886,2]
[394201857,1763375438463,-546.87591302,0.00014886,2]
[394201858,1763375438473,-546.87591302,0.00014886,2]
[394201859,1763375438483,-546.87591302,0.00014886,2]
[394201860,1763375438494,-546.87591302,0.00014886,2]
[394201861,1763375438503,-546.87591302,0.00014886,2]
[394201862,1763375438512,-546.87591302,0.00014886,2]
[394201863,1763375438522,-546.87591302,0.00014886,2]
[394201864,1763375438532,-546.87591302,0.00014886,2]
[394201865,1763375438542,-546.87591302,0.00014886,2]
[394201866,1763375438551,-546.87591302,0.00014886,2]
[394201867,1763375438561,-546.87591302,0.00014886,2]
[394201868,1763375438648,-546.87591302,0.00014886,2]
[394201869,1763375438658,-546.87591302,0.00014886,2]
[394201870,1763375438668,-300.0,0.00014886,2]
[394201871,1763375438677,-300.0,0.00014886,2]
[394201872,1763375438687,-1200.0,0.00014886,2]
[394201873,1763375438696,-50000.0,0.00014887,2]
[394201874,1763375438704,-500.0,0.00014887,2]
[394201875,1763375438714,-500.0,0.00014891,2]
[394201876,1763375438723,-500.0,0.00014891,2]
[394201877,1763375438733,-960.69,0.00014891,2]
[394201878,1763375438743,-960.69,0.00014891,2]
[394201879,1763375438751,-960.69,0.00014891,2]
[394201880,1763375438761,-960.69,0.00014891,2]
[394201881,1763375438770,-960.69,0.00014891,2]
[394201882,1763375438780,-960.69,0.00014891,2]
[394201883,1763375438789,-960.69,0.00014891,2]
[394201884,1763375438799,-960.69,0.00014891,2]
[394201885,1763375438809,-960.69,0.00014891,2]
[394201886,1763375438818,-960.69,0.00014891,2]
[394201887,1763375438827,-960.69,0.00014891,2]
[394201888,1763375438837,-960.69,0.00014891,2]
[394201889,1763375438846,-960.69,0.00014891,2]
[394201890,1763375438856,-960.69,0.00014891,2]
[394201891,1763375438866,-960.69,0.00014891,2]
[394201892,1763375438877,-960.69,0.00014891,2]
[394201893,1763375438886,-960.69,0.00014891,2]
[394201894,1763375438896,-500.0,0.00014891,2]
[394201895,1763375438907,-528.33926907,0.00014895,2]
[394201896,1763375438916,-333.64945345,0.00014895,2]
[394201897,1763375438926,-960.69,0.00014897,2]
[394201898,1763375438935,-151.0,0.000149,2]
[394201899,1763375438944,-193.85341116,0.000149,2]
[394201900,1763375438953,-193.85341116,0.000149,2]
[394201901,1763375438962,-193.85341116,0.000149,2]
[394201902,1763375438973,-934.1347366,0.00015068,2]
[394201903,1763375438983,-500.0,0.00015161,2]
[394201904,1763375438992,-100000.0,0.0001532,2]
[394201905,1763375439002,-500.0,0.00015373,2]
[394201906,1763375439012,-503.85554989,0.00015373,2]
[394201907,1763375439021,-500.0,0.00015373,2]
[394201908,1763375439031,-500.0,0.00015373,2]
[394201909,1763375439040,-501.42486407,0.00015373,2]
[394201910,1763375439050,-500.0,0.00015373,2]
[394201911,1763375439059,-960.69,0.0001542,2]
[394201912,1763375439069,-599.65177378,0.00015421,2]
[394201913,1763375439079,-1000.0,0.00015421,2]
[394201914,1763375439089,-524.87998137,0.00015421,2]
[394201915,1763375439099,-500.0,0.00015435,2]
[394201916,1763375439109,-300.0,0.00015679,2]
[394201917,1763375439119,-300.0,0.00015679,2]
[394201918,1763375439129,-300.0,0.00015679,2]
[394201919,1763375439139,-300.0,0.00015679,2]
[394201920,1763375439149,-300.0,0.00015679,2]
[394201921,1763375439158,-300.0,0.00015679,2]
[394201922,1763375439169,-300.0,0.00015679,2]
[394201923,1763375439178,-300.0,0.00015679,2]
[394201924,1763375439186,-300.0,0.00015679,2]
[394201925,1763375439197,-300.0,0.00015679,2]
[394201926,1763375439207,-300.0,0.00015679,2]
[394201927,1763375439216,-300.0,0.00015679,2]
[394201928,1763375439226,-300.0,0.00015679,2]
[394201929,1763375439236,-300.0,0.00015679,2]
[394201930,1763375439245,-300.0,0.00015679,2]
[394201931,1763375439255,-500.0,0.00015709,2]
[394201932,1763375439263,-1000.0,0.00015921,2]
[394201933,1763375439273,-1000.0,0.00015921,2]
[394201934,1763375439283,-1261.79992184,0.00015968,2]
[394201935,1763375439293,-500.81735696,0.00015973,2]
[394201936,1763375439302,-500.0,0.00015973,2]
[394201937,1763375439312,-500.0,0.00015973,2]
[394201938,1763375439322,-507.90955875,0.00015973,2]
[394201939,1763375439333,-500.0,0.00015973,2]
[394201940,1763375439348,-501.96334487,0.00015973,2]
[394201941,1763375439363,-500.0,0.00015983,2]
[394201942,1763375439377,-600.0,0.00015992,2]
[394201943,1763375439389,-500.0,0.00016257,2]
[394201944,1763375439403,-889.0,0.00016278,2]
[394201945,1763375439417,-222.0,0.00016294,2]
[394201946,1763375439432,-420.0,0.00016294,2]
[394201947,1763375439446,-1680.0,0.00016374,2]
[394201950,1763375439460,-960.69,0.00016437,2]
[394201952,1763375439473,-960.69,0.00016437,2]
[394201954,1763375439487,-960.69,0.00016437,2]
[394201955,1763375439501,-960.69,0.00016437,2]
[394201956,1763375439515,-960.80418685,0.00016437,2]
[394201957,1763375439528,-500.0,0.00016438,2]
[394201958,1763375439543,-500.0,0.00016438,2]
[394201959,1763375439555,-500.0,0.00016438,2]
[394201960,1763375439566,-500.0,0.00016438,2]
[394201961,1763375439579,-500.0,0.00016438,2]
[394201962,1763375439591,-500.0,0.00016438,2]
[394201963,1763375439606,-500.0,0.00016438,2]
[394201964,1763375439619,-295.231003,0.00016438,2]
[394201965,1763375439632,-500.0,0.00016438,2]
[394201966,1763375439647,-500.0,0.00016438,2]
[394201967,1763375439663,-500.0,0.00016438,2]
[394201969,1763375439678,-500.0,0.00016438,2]
[394201970,1763375439690,-500.0,0.00016438,2]
[394201971,1763375439701,-500.0,0.00016438,2]
[394201972,1763375439712,-500.0,0.00016438,2]
[394201973,1763375439727,-500.0,0.00016438,2]
[394201974,1763375439741,-500.0,0.00016438,2]
[394201975,1763375439752,-500.0,0.00016438,2]
[394201977,1763375439764,-500.0,0.00016438,2]
[394201979,1763375439777,-588.0371519,0.00016438,2]
[394201980,1763375439789,-500.0,0.00016438,2]
[394201981,1763375439800,-500.0,0.00016438,2]
[394201982,1763375439811,-500.0,0.00016438,2]
[394201983,1763375439822,-500.0,0.00016438,2]
[394201984,1763375439833,-500.0,0.00016438,2]
[394201985,1763375439845,-500.0,0.00016438,2]
[394201986,1763375439857,-500.0,0.00016438,2]
[394201987,1763375439869,-500.0,0.00016438,2]
[394201988,1763375439881,-500.0,0.00016438,2]
[394201989,1763375439892,-500.0,0.00016438,2]
[394201990,1763375439905,-500.0,0.00016438,2]
[394201991,1763375439917,-500.0,0.00016438,2]
[394201992,1763375439929,-500.0,0.00016438,2]
[394201993,1763375439941,-500.0,0.00016438,2]
[394201994,1763375439954,-500.0,0.00016438,2]
[394201995,1763375439966,-500.0,0.00016438,2]
[394201996,1763375439978,-500.0,0.00016438,2]
[394201997,1763375439990,-500.0,0.00016438,2]
[394201998,1763375440002,-500.0,0.00016438,2]
[394201999,1763375440014,-500.0,0.00016438,2]
[394202000,1763375440026,-500.0,0.00016438,2]
[394202001,1763375440038,-500.0,0.00016438,2]
[394202002,1763375440050,-500.0,0.00016438,2]
[394202003,1763375440062,-500.0,0.00016438,2]
[394202004,1763375440073,-500.0,0.00016438,2]
[394202006,1763375440085,-334.47015015,0.00016438,2]
[394202007,1763375440096,-500.0,0.00016438,2]
[394202008,1763375440108,-500.0,0.00016438,2]
[394202009,1763375440120,-500.0,0.00016438,2]
[394202010,1763375440132,-500.0,0.00016438,2]
[394202011,1763375440144,-500.0,0.00016438,2]
[394202012,1763375440155,-500.0,0.00016438,2]
[394202013,1763375440167,-500.0,0.00016438,2]
[394202014,1763375440179,-500.0,0.00016438,2]
[394202015,1763375440191,-500.0,0.00016438,2]
[394202016,1763375440202,-500.0,0.00016438,2]
[394202017,1763375440213,-500.0,0.00016438,2]
[394202018,1763375440326,-500.0,0.00016438,2]
[394202019,1763375440341,-500.0,0.00016438,2]
[394202020,1763375440351,-500.0,0.00016438,2]
[394202021,1763375440361,-500.0,0.00016438,2]
[394202022,1763375440370,-500.0,0.00016438,2]
[394202023,1763375440379,-500.0,0.00016438,2]
[394202024,1763375440388,-500.0,0.00016438,2]
[394202025,1763375440398,-500.0,0.00016438,2]
[394202026,1763375440407,-500.0,0.00016438,2]
[394202027,1763375440416,-500.0,0.00016438,2]
[394202028,1763375440425,-500.0,0.00016438,2]
[394202029,1763375440435,-500.0,0.00016438,2]
[394202030,1763375440444,-500.0,0.00016438,2]
[394202031,1763375440454,-500.0,0.00016438,2]
[394202033,1763375440467,-500.0,0.00016438,2]
[394202034,1763375440476,-500.0,0.00016438,2]
[394202035,1763375440487,-500.0,0.00016438,2]
[394202036,1763375440496,-500.0,0.00016438,2]
[394202037,1763375440505,-500.0,0.00016438,2]
[394202038,1763375440514,-500.0,0.00016438,2]
[394202039,1763375440523,-1500.0,0.00016468,2]
[394202040,1763375440532,-516.64132678,0.00016468,2]
[394202041,1763375440540,-435.59980476,0.00016473,2]
[394202042,1763375440549,-500.0,0.00016473,2]
[394202043,1763375440559,-500.0,0.00016473,2]
[394202044,1763375440568,-501.54850908,0.00016473,2]
[394202045,1763375440581,-501.0503735,0.00016473,2]
[394202046,1763375440591,-500.4503771,0.00016473,2]
[394202047,1763375440600,-505.03306875,0.00016473,2]
[394202048,1763375440609,-501.3914242,0.00016473,2]
[394202049,1763375440618,-501.37329497,0.00016473,2]
[394202050,1763375440627,-500.0,0.00016473,2]
[394202051,1763375440637,-500.83212326,0.00016473,2]
[394202052,1763375440646,-500.0,0.00016473,2]
[394202053,1763375440655,-501.19443095,0.00016473,2]
[394202054,1763375440664,-500.0,0.00016473,2]
[394202055,1763375440675,-500.0,0.00016531,2]
[394202056,1763375440684,-177.0,0.00016683,2]
[394202057,1763375440694,-500.0,0.00016805,2]
[394202058,1763375440703,-151.0,0.000169,2]
[394202059,1763375440712,-14821.28757817,0.00017,2]
[394202060,1763375440722,-298.1695463,0.00017007,2]
[394202061,1763375440731,-1855.51592409,0.00017016,2]
[394202062,1763375440741,-518.81663682,0.00017017,2]
[394202063,1763375440750,-274.0948081,0.00017021,2]
[394202064,1763375440759,-1001.47190717,0.00017021,2]
[394202065,1763375440768,-504.70574074,0.00017021,2]
[394202066,1763375440778,-1000.0,0.00017021,2]
[394202067,1763375440787,-541.04800509,0.00017021,2]
[394202068,1763375440796,-160.0,0.0001705,2]
[394202069,1763375440805,-500.0,0.00017079,2]
[394202070,1763375440815,-297.6031367,0.00017102,2]
[394202071,1763375440824,-297.6025703,0.00017102,2]
[394202072,1763375440833,-535.39886515,0.00017102,2]
[394202073,1763375440842,-500.0,0.00017353,2]
[394202074,1763375440852,-10000.0,0.00017536,2]
[394202075,1763375440861,-1500.0,0.00017568,2]
[394202076,1763375440871,-720.0,0.00017591,2]
[394202077,1763375440880,-260.0,0.00017598,2]
[394202078,1763375440890,-500.0,0.00017627,2]
[394202079,1763375440900,-2293.48,0.00017797,3]
[394202080,1763375440909,-587.0,0.00017834,2]
[394202081,1763375440919,-151.0,0.000179,2]
[394202082,1763375440929,-395.03358643,0.00017901,2]
[394202083,1763375440938,-331.0,0.00017918,2]
[394202084,1763375440947,-36187.92069803,0.00018,2]
[394202085,1763375440957,-2034.75722423,0.00018,2]
[394202086,1763375440966,-2351.0,0.00018012,2]
[394202087,1763375440975,-414.0,0.00018114,2]
[394202088,1763375440984,-2000.0,0.00018116,2]
[394202089,1763375440994,-360.0,0.00018146,2]
[394202090,1763375441003,-1085.66456955,0.0001828,2]
[394202091,1763375441012,-477.42487773,0.00018664,2]
[394202092,1763375441021,-204.0,0.00018683,2]
[394202093,1763375441031,-460.0,0.00018694,2]
[394202094,1763375441040,-151.0,0.000189,2]
[394202095,1763375441050,-560.0,0.00019242,2]
[394202096,1763375441060,-864.0,0.0001935,2]
[394202097,1763375441070,-823.0,0.00019521,2]
[394202098,1763375441079,-660.0,0.0001979,2]
[394202099,1763375441088,-802.0,0.00019813,2]
[394202100,1763375441097,-151.0,0.000199,2]
[394202101,1763375441107,-11235.22040954,0.0002,2]
[394202102,1763375441115,-183.73144672,0.0002,2]
[394202103,1763375441124,-251.68318107,0.0002,21]
[394202104,1763375441133,-2963.6142836,0.0002,20]
[394202105,1763375441143,-232.68850417,0.0002,7]
[394202106,1763375441152,-4000.0,0.0002,2]
[394202107,1763375441161,-1152.0,0.0002,2]
[394202108,1763375441171,-518.81663682,0.00020094,2]
[394202109,1763375441180,-535.39886515,0.00020157,2]
[394202110,1763375441189,-760.0,0.00020338,2]
[394202111,1763375441199,-231.0,0.00020683,2]
[394202112,1763375441208,-1000.0,0.000207,2]
[394202113,1763375441218,-1000.0,0.000207,2]
[394202114,1763375441227,-1000.0,0.000207,2]
[394202115,1763375441236,-1000.0,0.000207,2]
[394202116,1763375441246,-1000.0,0.000207,2]
[394202117,1763375441255,-860.0,0.00020886,2]
[394202118,1763375441265,-151.0,0.000209,4]
[394202119,1763375441274,-1547.7476297,0.00021,10]
[394202120,1763375441285,-1000.0,0.00021285,20]
[394202121,1763375441294,-1152.0,0.00021367,2]
[394202122,1763375441303,-960.0,0.00021434,2]
[394202123,1763375441312,-151.0,0.000219,3]
[394202124,1763375441321,-500.0,0.00021917,2]
[394202125,1763375441330,-1060.0,0.00021982,2]
[394202126,1763375441340,-481.18,0.00022,7]
[394202127,1763375441349,-151.0,0.000223,10]
[394202128,1763375441359,-1160.0,0.00022529,2]
[394202129,1763375441368,-258.0,0.00022683,2]
[394202130,1763375441377,-162.1255152,0.00022797,2]
[394202131,1763375441386,-464.15,0.000228,14]
[394202132,1763375441396,-24017.55,0.000228,7]
[394202133,1763375441405,-151.0,0.000229,6]
[394202134,1763375441415,-151.0,0.000229,9]
[394202135,1763375441426,-204.52253555,0.00023,2]
[394202136,1763375441435,-5355.32147817,0.00023,2]
[394202137,1763375441445,-500.0,0.00023013,2]
[394202138,1763375441455,-185.19814475,0.00023077,2]
[394202139,1763375441464,-298.1695463,0.00023166,2]
[394202140,1763375441474,-518.81663682,0.00023171,2]
[394202141,1763375441483,-151.0,0.000232,8]
[394202142,1763375441493,-297.6031367,0.00023213,2]
[394202143,1763375441503,-297.6025703,0.00023213,2]
[394202144,1763375441512,-535.39886515,0.00023213,2]
[394202145,1763375441521,-1055.0,0.00023388,2]
[394202146,1763375441531,-1000.0,0.00023413,20]
[394202147,1763375441539,-244.0,0.00023413,20]
[394202148,1763375441548,-1000.0,0.00023861,2]
[394202149,1763375441557,-1000.0,0.00023861,2]
[394202150,1763375441567,-1000.0,0.00023861,2]
[394202151,1763375441578,-1000.0,0.00023861,2]
[394202152,1763375441589,-151.0,0.00023861,2]
[394202153,1763375441599,-1000.0,0.00023861,2]
[394202154,1763375441608,-151.0,0.00023861,2]
[394202155,1763375441619,-1000.0,0.00023861,2]
[394202156,1763375441628,-165.74880417,0.00023861,2]
[394202157,1763375441639,-1000.0,0.00023861,2]
[394202158,1763375441648,-1000.0,0.00023861,2]
[394202159,1763375441659,-1000.0,0.00023861,2]
[394202160,1763375441668,-1000.0,0.00023861,2]
[394202161,1763375441678,-1000.0,0.00023861,2]
[394202162,1763375441688,-1000.0,0.00023861,2]
[394202163,1763375441698,-1000.0,0.00023861,2]
[394202164,1763375441707,-845.54684014,0.00023861,2]
[394202165,1763375441716,-1000.0,0.00023861,2]
[394202166,1763375441726,-1000.0,0.00023861,2]